[Event "Betsys MČR v online bleskovém šachu 2021"]
[Site "Chess.com"]
[Date "2021.04.17"]
[Round "3"]
[White "Innerz98"]
[Black "youhy"]
[Result "1-0"]
[WhiteElo "2108"]
[BlackElo "1763"]
[TimeControl "180+1"]
[EndTime "9:25:49 PDT"]
[Termination "Uživatel Innerz98 zvítězil na čas"]

1. d4 {[%clk 0:03:00.9]} 1... Nf6 {[%clk 0:02:58]} 2. Bf4 {[%clk 0:03:00.6]}
2... d5 {[%clk 0:02:56.5]} 3. Nf3 {[%clk 0:03:00.6]} 3... c5 {[%clk 0:02:55.7]}
4. e3 {[%clk 0:03:00.6]} 4... Nc6 {[%clk 0:02:54.5]} 5. c3 {[%clk 0:03:00.9]}
5... g6 {[%clk 0:02:53.9]} 6. Bd3 {[%clk 0:03:00.8]} 6... Bg7 {[%clk 0:02:53.5]}
7. Nbd2 {[%clk 0:03:01.1]} 7... O-O {[%clk 0:02:49.9]} 8. O-O {[%clk 0:03:00.6]}
8... Nd7 {[%clk 0:02:36.4]} 9. Re1 {[%clk 0:02:56.3]} 9... e5 {[%clk 0:02:35.8]}
10. dxe5 {[%clk 0:02:53.6]} 10... Ndxe5 {[%clk 0:02:35.9]} 11. Nxe5 {[%clk
0:02:53.3]} 11... Nxe5 {[%clk 0:02:35.7]} 12. Be2 {[%clk 0:02:52.3]} 12... Re8
{[%clk 0:02:27.2]} 13. Nf3 {[%clk 0:02:52.3]} 13... Bf5 {[%clk 0:02:07.5]} 14.
Qb3 {[%clk 0:02:37.6]} 14... b6 {[%clk 0:01:44.9]} 15. Rad1 {[%clk 0:02:35.2]}
15... c4 {[%clk 0:01:25]} 16. Qb5 {[%clk 0:02:22.7]} 16... Nd3 {[%clk
0:01:21.7]} 17. Bxd3 {[%clk 0:02:19.6]} 17... Bxd3 {[%clk 0:01:13.2]} 18. Nd4
{[%clk 0:02:13.2]} 18... Bxd4 {[%clk 0:00:52.9]} 19. exd4 {[%clk 0:02:07.8]}
19... Re4 {[%clk 0:00:31.1]} 20. Bg3 {[%clk 0:01:54.7]} 20... a6 {[%clk
0:00:23.8]} 21. Qc6 {[%clk 0:01:52.2]} 21... Rc8 {[%clk 0:00:22.1]} 22. Qb7
{[%clk 0:01:48.8]} 22... Qf8 {[%clk 0:00:07.4]} 23. Qxb6 {[%clk 0:01:43.8]}
23... Rce8 {[%clk 0:00:06.8]} 24. Rxe4 {[%clk 0:01:42.1]} 24... Rxe4 {[%clk
0:00:05]} 25. Qf6 {[%clk 0:01:41.5]} 25... Qe8 {[%clk 0:00:04.7]} 26. Be5 {[%clk
0:01:40.5]} 26... Rxe5 {[%clk 0:00:03]} 27. Qxe5 {[%clk 0:01:40.1]} 27... Qxe5
{[%clk 0:00:02.7]} 28. dxe5 {[%clk 0:01:41]} 28... Kf8 {[%clk 0:00:02.7]} 29. f4
{[%clk 0:01:40.4]} 29... Ke7 {[%clk 0:00:03.6]} 30. Kf2 {[%clk 0:01:40.6]} 30...
Ke6 {[%clk 0:00:04.2]} 31. Ke3 {[%clk 0:01:40.6]} 31... f5 {[%clk 0:00:04.2]}
32. Kd4 {[%clk 0:01:39.3]} 32... Be4 {[%clk 0:00:03.9]} 33. g3 {[%clk
0:01:38.9]} 33... Bc2 {[%clk 0:00:03.4]} 34. Rd2 {[%clk 0:01:38.9]} 34... Bb1
{[%clk 0:00:02.9]} 35. a3 {[%clk 0:01:39.4]} 35... Bd3 {[%clk 0:00:02.5]} 36.
Kc5 {[%clk 0:01:39.8]} 1-0

[Event "Betsys MČR v online bleskovém šachu 2021"]
[Site "Chess.com"]
[Date "2021.04.17"]
[Round "3"]
[White "patrikvagner"]
[Black "marfuss"]
[Result "1/2-1/2"]
[WhiteElo "1765"]
[BlackElo "2085"]
[TimeControl "180+1"]
[EndTime "9:25:49 PDT"]
[Termination "Remíza opakováním pozice"]

1. d4 {[%clk 0:03:00.9]} 1... f5 {[%clk 0:02:59.8]} 2. e4 {[%clk 0:03:00.3]}
2... fxe4 {[%clk 0:02:55.2]} 3. Nc3 {[%clk 0:03:00.1]} 3... Nf6 {[%clk
0:02:51.8]} 4. Bg5 {[%clk 0:02:59.7]} 4... g6 {[%clk 0:02:47.5]} 5. Bxf6 {[%clk
0:02:57.8]} 5... exf6 {[%clk 0:02:47.8]} 6. Nxe4 {[%clk 0:02:57.9]} 6... Bg7
{[%clk 0:02:40]} 7. Bd3 {[%clk 0:02:53.2]} 7... O-O {[%clk 0:02:39.2]} 8. Nf3
{[%clk 0:02:52]} 8... d5 {[%clk 0:02:32.7]} 9. Ng3 {[%clk 0:02:46.6]} 9... Re8+
{[%clk 0:02:25.5]} 10. Be2 {[%clk 0:02:46.1]} 10... Bg4 {[%clk 0:02:13.3]} 11.
O-O {[%clk 0:02:43.3]} 11... Nc6 {[%clk 0:02:11.1]} 12. c3 {[%clk 0:02:42.1]}
12... f5 {[%clk 0:01:52.3]} 13. h3 {[%clk 0:02:41.7]} 13... Bxf3 {[%clk
0:01:46.7]} 14. Bxf3 {[%clk 0:02:41.1]} 14... f4 {[%clk 0:01:43.5]} 15. Ne2
{[%clk 0:02:40.8]} 15... Bh6 {[%clk 0:01:27.5]} 16. Qd2 {[%clk 0:02:39.6]} 16...
Rf8 {[%clk 0:01:24.9]} 17. Nc1 {[%clk 0:02:35.8]} 17... Ne7 {[%clk 0:01:19.7]}
18. Nd3 {[%clk 0:02:34.7]} 18... g5 {[%clk 0:01:16.3]} 19. Rfe1 {[%clk
0:02:33.6]} 19... Ng6 {[%clk 0:01:10]} 20. Ne5 {[%clk 0:02:33.1]} 20... Nh4
{[%clk 0:00:57]} 21. Bg4 {[%clk 0:02:29.4]} 21... c6 {[%clk 0:00:54.8]} 22. f3
{[%clk 0:02:24.7]} 22... Qd6 {[%clk 0:00:45]} 23. Qd3 {[%clk 0:02:15.6]} 23...
Rae8 {[%clk 0:00:39.1]} 24. Re2 {[%clk 0:02:12]} 24... Ng6 {[%clk 0:00:31.1]}
25. Nxg6 {[%clk 0:02:02.7]} 25... Qxg6 {[%clk 0:00:31.2]} 26. Qxg6+ {[%clk
0:02:00]} 26... hxg6 {[%clk 0:00:31.9]} 27. Rae1 {[%clk 0:01:58.9]} 27... Kf7
{[%clk 0:00:29]} 28. Rxe8 {[%clk 0:01:58.1]} 28... Rxe8 {[%clk 0:00:29.1]} 29.
Rxe8 {[%clk 0:01:57.2]} 29... Kxe8 {[%clk 0:00:30]} 30. Kf2 {[%clk 0:01:57]}
30... Ke7 {[%clk 0:00:27.8]} 31. Ke2 {[%clk 0:01:55.4]} 31... Kd6 {[%clk
0:00:27.3]} 32. Kd3 {[%clk 0:01:52.9]} 32... Bg7 {[%clk 0:00:26.8]} 33. b3
{[%clk 0:01:52.3]} 33... b5 {[%clk 0:00:23.2]} 34. a4 {[%clk 0:01:51.4]} 34...
bxa4 {[%clk 0:00:20.6]} 35. bxa4 {[%clk 0:01:51]} 35... a5 {[%clk 0:00:20.5]}
36. Bc8 {[%clk 0:01:45.5]} 36... c5 {[%clk 0:00:20.1]} 37. Bg4 {[%clk
0:01:43.5]} 37... c4+ {[%clk 0:00:20.4]} 38. Kc2 {[%clk 0:01:43.4]} 38... Bf8
{[%clk 0:00:20.5]} 39. Kd2 {[%clk 0:01:41.6]} 39... Ke7 {[%clk 0:00:20.8]} 40.
Kc2 {[%clk 0:01:40.9]} 40... Kf6 {[%clk 0:00:21.4]} 41. Kd2 {[%clk 0:01:40.1]}
41... Ba3 {[%clk 0:00:22]} 42. Kc2 {[%clk 0:01:39.6]} 42... Bd6 {[%clk
0:00:22.1]} 43. Kd2 {[%clk 0:01:39.2]} 43... Ba3 {[%clk 0:00:22.7]} 44. Kc2
{[%clk 0:01:39.3]} 44... Bd6 {[%clk 0:00:22.9]} 45. Kd2 {[%clk 0:01:39.6]} 45...
Ba3 {[%clk 0:00:23.2]} 1/2-1/2

[Event "Betsys MČR v online bleskovém šachu 2021"]
[Site "Chess.com"]
[Date "2021.04.17"]
[Round "3"]
[White "dzerenyss"]
[Black "misa2009"]
[Result "0-1"]
[WhiteElo "1111"]
[BlackElo "1506"]
[TimeControl "180+1"]
[EndTime "9:25:52 PDT"]
[Termination "Uživatel misa2009 zvítězil na čas"]

1. e4 {[%clk 0:02:57.5]} 1... e5 {[%clk 0:02:59.8]} 2. Nf3 {[%clk 0:02:56.7]}
2... Nc6 {[%clk 0:02:59.3]} 3. d4 {[%clk 0:02:54.9]} 3... exd4 {[%clk
0:02:58.5]} 4. Nxd4 {[%clk 0:02:54.6]} 4... Bc5 {[%clk 0:02:58.3]} 5. Nb3 {[%clk
0:02:52.1]} 5... Bb6 {[%clk 0:02:57.7]} 6. Nc3 {[%clk 0:02:49.8]} 6... d6 {[%clk
0:02:56.7]} 7. Bd3 {[%clk 0:02:48.4]} 7... Nf6 {[%clk 0:02:55.1]} 8. Bg5 {[%clk
0:02:43.9]} 8... Be6 {[%clk 0:02:50.4]} 9. O-O {[%clk 0:02:37]} 9... O-O {[%clk
0:02:49.5]} 10. Qe2 {[%clk 0:02:24.3]} 10... h6 {[%clk 0:02:48.7]} 11. Bh4
{[%clk 0:02:22.1]} 11... Ne5 {[%clk 0:02:42.8]} 12. Nd5 {[%clk 0:01:53.3]} 12...
Bxd5 {[%clk 0:02:40.9]} 13. exd5 {[%clk 0:01:49.1]} 13... Re8 {[%clk 0:02:40.4]}
14. Qd2 {[%clk 0:01:20.2]} 14... Nxd3 {[%clk 0:02:34.1]} 15. Qxd3 {[%clk
0:01:17.4]} 15... a6 {[%clk 0:02:24.4]} 16. Rfe1 {[%clk 0:01:00.2]} 16... Qd7
{[%clk 0:02:09.5]} 17. Bxf6 {[%clk 0:00:50.3]} 17... gxf6 {[%clk 0:02:06.2]} 18.
Qg3+ {[%clk 0:00:48.3]} 18... Kh7 {[%clk 0:02:00.2]} 19. Qd3+ {[%clk 0:00:45]}
19... Kh8 {[%clk 0:01:57.3]} 20. Re4 {[%clk 0:00:33.1]} 20... Rxe4 {[%clk
0:01:53.2]} 21. Qxe4 {[%clk 0:00:31.9]} 21... f5 {[%clk 0:01:52.8]} 22. Qh4
{[%clk 0:00:28.4]} 22... Kh7 {[%clk 0:01:50]} 23. Re1 {[%clk 0:00:24.5]} 23...
Re8 {[%clk 0:01:49.3]} 24. Rd1 {[%clk 0:00:23.3]} 24... Qe7 {[%clk 0:01:41.6]}
25. Qxe7 {[%clk 0:00:16.6]} 25... Rxe7 {[%clk 0:01:40.9]} 26. h3 {[%clk
0:00:15.5]} 26... Re2 {[%clk 0:01:38.5]} 27. Nd2 {[%clk 0:00:12.7]} 27... Rxf2
{[%clk 0:01:35.4]} 28. Kh1 {[%clk 0:00:09.7]} 28... Re2 {[%clk 0:01:32.5]} 29.
c3 {[%clk 0:00:05.5]} 29... Be3 {[%clk 0:01:30.1]} 30. Nb3 {[%clk 0:00:02.9]}
30... Rxb2 {[%clk 0:01:26.9]} 0-1

[Event "Betsys MČR v online bleskovém šachu 2021"]
[Site "Chess.com"]
[Date "2021.04.17"]
[Round "3"]
[White "VojtechPlat"]
[Black "fadamos"]
[Result "1-0"]
[WhiteElo "2865"]
[BlackElo "2253"]
[TimeControl "180+1"]
[EndTime "9:25:53 PDT"]
[Termination "Uživatel VojtechPlat zvítězil po vzdání soupeře"]

1. d4 {[%clk 0:03:00.9]} 1... Nf6 {[%clk 0:02:59.8]} 2. Nf3 {[%clk 0:03:00.3]}
2... g6 {[%clk 0:02:59.9]} 3. e3 {[%clk 0:03:00.5]} 3... Bg7 {[%clk 0:03:00]} 4.
c4 {[%clk 0:03:00.7]} 4... O-O {[%clk 0:03:00.4]} 5. Nbd2 {[%clk 0:03:00.5]}
5... d6 {[%clk 0:03:00.6]} 6. b3 {[%clk 0:03:00.3]} 6... Nbd7 {[%clk 0:02:57.4]}
7. Bb2 {[%clk 0:02:56.4]} 7... a5 {[%clk 0:02:57.9]} 8. a3 {[%clk 0:02:53.6]}
8... c6 {[%clk 0:02:55]} 9. Be2 {[%clk 0:02:53]} 9... Qc7 {[%clk 0:02:55]} 10.
O-O {[%clk 0:02:50.2]} 10... Re8 {[%clk 0:02:42.1]} 11. Rc1 {[%clk 0:02:44.9]}
11... e5 {[%clk 0:02:38.9]} 12. c5 {[%clk 0:02:38.7]} 12... exd4 {[%clk
0:02:30.8]} 13. cxd6 {[%clk 0:02:37.5]} 13... Qxd6 {[%clk 0:02:31.7]} 14. Nc4
{[%clk 0:02:35.8]} 14... Qe7 {[%clk 0:02:28.2]} 15. Qxd4 {[%clk 0:02:16.2]}
15... Nh5 {[%clk 0:01:36.5]} 16. Qd2 {[%clk 0:02:15.2]} 16... Bxb2 {[%clk
0:01:36.2]} 17. Qxb2 {[%clk 0:02:14.8]} 17... b5 {[%clk 0:01:36.5]} 18. Ncd2
{[%clk 0:02:13.6]} 18... Bb7 {[%clk 0:01:34.5]} 19. Nd4 {[%clk 0:02:11]} 19...
c5 {[%clk 0:01:09.3]} 20. Nxb5 {[%clk 0:02:04.3]} 20... Nf4 {[%clk 0:01:09.7]}
21. exf4 {[%clk 0:01:58.2]} 21... Qxe2 {[%clk 0:01:09.7]} 22. Nd6 {[%clk
0:01:57.3]} 22... Bc6 {[%clk 0:00:49.7]} 23. Nxe8 {[%clk 0:01:53.4]} 23... Rxe8
{[%clk 0:00:46.9]} 24. Nc4 {[%clk 0:01:50.4]} 24... Qe4 {[%clk 0:00:34.7]} 25.
f3 {[%clk 0:01:49.2]} 25... Qxf4 {[%clk 0:00:34.2]} 26. Rfe1 {[%clk 0:01:48.9]}
26... Rb8 {[%clk 0:00:26.8]} 27. Nxa5 {[%clk 0:01:46.4]} 27... Bb5 {[%clk
0:00:20.5]} 28. Rcd1 {[%clk 0:01:41.4]} 28... Rf8 {[%clk 0:00:14.3]} 29. Qd2
{[%clk 0:01:39.3]} 29... Qc7 {[%clk 0:00:06.8]} 30. a4 {[%clk 0:01:39.1]} 30...
Ba6 {[%clk 0:00:05.7]} 31. Qxd7 {[%clk 0:01:36.7]} 31... Qxa5 {[%clk 0:00:05.7]}
32. Re8 {[%clk 0:01:35.9]} 32... Qc3 {[%clk 0:00:04.9]} 33. Rxf8+ {[%clk
0:01:33.8]} 33... Kxf8 {[%clk 0:00:05.8]} 34. Qd6+ {[%clk 0:01:33.1]} 34... Kg7
{[%clk 0:00:05.5]} 35. Qxa6 {[%clk 0:01:32.6]} 35... Qe3+ {[%clk 0:00:04.9]} 1-0

[Event "Betsys MČR v online bleskovém šachu 2021"]
[Site "Chess.com"]
[Date "2021.04.17"]
[Round "3"]
[White "fm_magua"]
[Black "Stalri"]
[Result "1-0"]
[WhiteElo "2512"]
[BlackElo "2190"]
[TimeControl "180+1"]
[EndTime "9:25:54 PDT"]
[Termination "Uživatel fm_magua zvítězil matem"]

1. e4 {[%clk 0:03:00.9]} 1... c5 {[%clk 0:02:58.1]} 2. Nf3 {[%clk 0:03:00.9]}
2... e6 {[%clk 0:02:57.5]} 3. d4 {[%clk 0:03:01.4]} 3... cxd4 {[%clk 0:02:58]}
4. Nxd4 {[%clk 0:03:02.3]} 4... Nc6 {[%clk 0:02:57.8]} 5. Nc3 {[%clk 0:03:02.7]}
5... Nf6 {[%clk 0:02:58.1]} 6. Ndb5 {[%clk 0:02:59.9]} 6... Bc5 {[%clk
0:02:55.1]} 7. Nd6+ {[%clk 0:02:59.5]} 7... Ke7 {[%clk 0:02:54.4]} 8. Nxc8+
{[%clk 0:02:59.6]} 8... Rxc8 {[%clk 0:02:54]} 9. Be2 {[%clk 0:02:58.9]} 9... d5
{[%clk 0:02:52]} 10. exd5 {[%clk 0:02:58.8]} 10... exd5 {[%clk 0:02:51.3]} 11.
O-O {[%clk 0:02:59]} 11... Re8 {[%clk 0:02:51]} 12. Bg5 {[%clk 0:02:58.4]} 12...
Kf8 {[%clk 0:02:46.1]} 13. Bxf6 {[%clk 0:02:54.4]} 13... Qxf6 {[%clk 0:02:45.6]}
14. Nxd5 {[%clk 0:02:48.1]} 14... Qxb2 {[%clk 0:02:27.6]} 15. Rb1 {[%clk
0:02:46.8]} 15... Qxa2 {[%clk 0:02:25]} 16. Rxb7 {[%clk 0:02:28.7]} 16... Rxe2
{[%clk 0:02:12.9]} 17. Nc3 {[%clk 0:02:28.7]} 17... Qa6 {[%clk 0:02:12]} 18. Qd7
{[%clk 0:02:12.9]} 18... Ne7 {[%clk 0:01:52]} 19. Rd1 {[%clk 0:01:43]} 19... Re8
{[%clk 0:00:53.5]} 20. Nb5 {[%clk 0:01:21.7]} 20... Qc6 {[%clk 0:00:17.3]} 21.
h4 {[%clk 0:01:11.9]} 21... Qxd7 {[%clk 0:00:16.4]} 22. Rdxd7 {[%clk 0:01:11.6]}
22... Rxf2 {[%clk 0:00:15.6]} 23. Kh2 {[%clk 0:01:08.2]} 23... Rxc2 {[%clk
0:00:14.7]} 24. Nc7 {[%clk 0:01:08.4]} 24... Rc8 {[%clk 0:00:14.1]} 25. Nd5
{[%clk 0:01:08.3]} 25... Re2 {[%clk 0:00:08.2]} 26. Rbc7 {[%clk 0:01:04.6]}
26... Rxc7 {[%clk 0:00:07.7]} 27. Rd8# {[%clk 0:01:05]} 1-0

[Event "Betsys MČR v online bleskovém šachu 2021"]
[Site "Chess.com"]
[Date "2021.04.17"]
[Round "3"]
[White "Ami2013"]
[Black "vadoto"]
[Result "0-1"]
[WhiteElo "423"]
[BlackElo "1278"]
[TimeControl "180+1"]
[EndTime "9:25:54 PDT"]
[Termination "Uživatel vadoto zvítězil matem"]

1. e4 {[%clk 0:03:00.9]} 1... e5 {[%clk 0:02:59.8]} 2. Nf3 {[%clk 0:02:58.9]}
2... Nc6 {[%clk 0:02:59.7]} 3. Bc4 {[%clk 0:02:57.3]} 3... Bc5 {[%clk 0:02:59]}
4. Nc3 {[%clk 0:02:51.6]} 4... d6 {[%clk 0:02:53.1]} 5. h3 {[%clk 0:02:48.1]}
5... Nf6 {[%clk 0:02:52.3]} 6. O-O {[%clk 0:02:40.8]} 6... O-O {[%clk
0:02:50.5]} 7. d3 {[%clk 0:02:37.1]} 7... Be6 {[%clk 0:02:48.7]} 8. Bg5 {[%clk
0:02:29.8]} 8... Nd4 {[%clk 0:02:39.3]} 9. Nxd4 {[%clk 0:02:20]} 9... Bxd4
{[%clk 0:02:37]} 10. Qf3 {[%clk 0:01:55.3]} 10... Bxc4 {[%clk 0:02:25.5]} 11.
dxc4 {[%clk 0:01:41]} 11... Qe7 {[%clk 0:02:23.9]} 12. Qg3 {[%clk 0:01:39.5]}
12... a5 {[%clk 0:02:10.9]} 13. Bh6 {[%clk 0:01:31.7]} 13... Nh5 {[%clk
0:02:07.6]} 14. Qg4 {[%clk 0:01:26.3]} 14... Qf6 {[%clk 0:01:52.5]} 15. Qxh5
{[%clk 0:01:12.1]} 15... Qxh6 {[%clk 0:01:52.1]} 16. Qg4 {[%clk 0:01:09.1]}
16... a4 {[%clk 0:01:43.6]} 17. h4 {[%clk 0:01:02.2]} 17... a3 {[%clk
0:01:42.1]} 18. bxa3 {[%clk 0:00:58.5]} 18... Bxc3 {[%clk 0:01:41.4]} 19. Rae1
{[%clk 0:00:54.7]} 19... Bxe1 {[%clk 0:01:40.6]} 20. Rxe1 {[%clk 0:00:52.6]}
20... Rxa3 {[%clk 0:01:39.9]} 21. Rd1 {[%clk 0:00:26.2]} 21... Rxa2 {[%clk
0:01:36.5]} 22. Rd3 {[%clk 0:00:25.3]} 22... Rxc2 {[%clk 0:01:31.7]} 23. Rg3
{[%clk 0:00:22.6]} 23... Rc1+ {[%clk 0:01:29.1]} 24. Kh2 {[%clk 0:00:21.5]}
24... Rxc4 {[%clk 0:01:20.7]} 25. h5 {[%clk 0:00:19.9]} 25... d5 {[%clk
0:01:15.4]} 26. Kh3 {[%clk 0:00:15]} 26... Rxe4 {[%clk 0:01:13.7]} 27. Qf3
{[%clk 0:00:12.6]} 27... Rf4 {[%clk 0:01:09.8]} 28. Qxd5 {[%clk 0:00:11.4]}
28... Qxh5# {[%clk 0:01:06.6]} 0-1

[Event "Betsys MČR v online bleskovém šachu 2021"]
[Site "Chess.com"]
[Date "2021.04.17"]
[Round "3"]
[White "Hollow_Head"]
[Black "tiger196223"]
[Result "0-1"]
[WhiteElo "1060"]
[BlackElo "1849"]
[TimeControl "180+1"]
[EndTime "9:26:02 PDT"]
[Termination "Uživatel tiger196223 zvítězil matem"]

1. e4 {[%clk 0:03:00.9]} 1... e6 {[%clk 0:03:00.4]} 2. Nf3 {[%clk 0:02:56.5]}
2... d5 {[%clk 0:03:00.2]} 3. exd5 {[%clk 0:02:56.9]} 3... exd5 {[%clk
0:02:58.7]} 4. Qe2+ {[%clk 0:02:56.4]} 4... Qe7 {[%clk 0:02:53.1]} 5. Qxe7+
{[%clk 0:02:55.8]} 5... Bxe7 {[%clk 0:02:52]} 6. Be2 {[%clk 0:02:56.1]} 6... c6
{[%clk 0:02:51.6]} 7. O-O {[%clk 0:02:56.5]} 7... Nf6 {[%clk 0:02:38.8]} 8. d3
{[%clk 0:02:55.2]} 8... Bg4 {[%clk 0:02:38.3]} 9. h3 {[%clk 0:02:52.9]} 9... Bh5
{[%clk 0:02:32.7]} 10. Bg5 {[%clk 0:02:52.2]} 10... O-O {[%clk 0:02:28.5]} 11.
Bxf6 {[%clk 0:02:52.3]} 11... Bxf6 {[%clk 0:02:27.5]} 12. Nbd2 {[%clk
0:02:51.8]} 12... Re8 {[%clk 0:02:22.2]} 13. Rae1 {[%clk 0:02:45.2]} 13... Nd7
{[%clk 0:02:16.2]} 14. d4 {[%clk 0:02:40]} 14... Nb6 {[%clk 0:02:11.2]} 15. c3
{[%clk 0:02:38.9]} 15... Re7 {[%clk 0:02:05.2]} 16. b4 {[%clk 0:02:38.6]} 16...
a6 {[%clk 0:02:00.4]} 17. a3 {[%clk 0:02:31.3]} 17... Rae8 {[%clk 0:01:57.4]}
18. Bd3 {[%clk 0:02:22.7]} 18... Rxe1 {[%clk 0:01:49.1]} 19. Rxe1 {[%clk
0:02:22.8]} 19... Rxe1+ {[%clk 0:01:48.8]} 20. Nxe1 {[%clk 0:02:22.9]} 20... Bg5
{[%clk 0:01:39.2]} 21. Ndf3 {[%clk 0:02:21.5]} 21... Bc1 {[%clk 0:01:34.1]} 22.
Nc2 {[%clk 0:02:16.7]} 22... Bxf3 {[%clk 0:01:32.7]} 23. gxf3 {[%clk 0:02:16.9]}
23... Na4 {[%clk 0:01:25.1]} 24. Kf1 {[%clk 0:02:13.3]} 24... Nxc3 {[%clk
0:01:22.1]} 25. Ke1 {[%clk 0:02:12.6]} 25... Nb5 {[%clk 0:01:13.2]} 26. Bxb5
{[%clk 0:02:10.1]} 26... axb5 {[%clk 0:01:08.3]} 27. Kd1 {[%clk 0:02:10.5]}
27... Bf4 {[%clk 0:01:02.6]} 28. Ke2 {[%clk 0:02:07.3]} 28... Kf8 {[%clk
0:01:02]} 29. Ne3 {[%clk 0:02:06.2]} 29... Bxe3 {[%clk 0:01:01]} 30. fxe3 {[%clk
0:02:06.8]} 30... Ke7 {[%clk 0:01:00.7]} 31. Kf2 {[%clk 0:02:07.1]} 31... f5
{[%clk 0:01:00.4]} 32. Kg3 {[%clk 0:02:07.8]} 32... g5 {[%clk 0:00:58.2]} 33. f4
{[%clk 0:02:08.1]} 33... Kf6 {[%clk 0:00:48.8]} 34. fxg5+ {[%clk 0:02:06.6]}
34... Kxg5 {[%clk 0:00:48.6]} 35. h4+ {[%clk 0:02:07]} 35... Kh5 {[%clk
0:00:48.5]} 36. Kh3 {[%clk 0:02:06.7]} 36... Kg6 {[%clk 0:00:44.8]} 37. Kg3
{[%clk 0:02:06.7]} 37... Kf6 {[%clk 0:00:43.6]} 38. Kf4 {[%clk 0:02:06.4]} 38...
Kg6 {[%clk 0:00:42.3]} 39. h5+ {[%clk 0:02:06.6]} 39... Kxh5 {[%clk 0:00:41.1]}
40. Kxf5 {[%clk 0:02:07.3]} 40... Kh4 {[%clk 0:00:40.7]} 41. Ke6 {[%clk
0:02:06.4]} 41... Kg3 {[%clk 0:00:35.7]} 42. Kd7 {[%clk 0:02:06.9]} 42... h5
{[%clk 0:00:35.8]} 43. Kc7 {[%clk 0:02:07.6]} 43... h4 {[%clk 0:00:36.3]} 44.
Kxb7 {[%clk 0:02:08.1]} 44... h3 {[%clk 0:00:36.9]} 45. Kxc6 {[%clk 0:02:08.6]}
45... h2 {[%clk 0:00:37.6]} 46. Kxb5 {[%clk 0:02:09.2]} 46... h1=Q {[%clk
0:00:37.5]} 47. a4 {[%clk 0:02:09.9]} 47... Qe4 {[%clk 0:00:37.2]} 48. a5 {[%clk
0:02:09.8]} 48... Qxe3 {[%clk 0:00:37.4]} 49. a6 {[%clk 0:02:09.7]} 49... Qxd4
{[%clk 0:00:37.4]} 50. Ka5 {[%clk 0:02:03.4]} 50... Qc4 {[%clk 0:00:34]} 51. a7
{[%clk 0:02:02.2]} 51... d4 {[%clk 0:00:31.5]} 52. a8=Q {[%clk 0:02:01.7]} 52...
Qa2+ {[%clk 0:00:30.8]} 53. Kb5 {[%clk 0:02:00]} 53... Qxa8 {[%clk 0:00:30.4]}
54. Kc4 {[%clk 0:02:00.5]} 54... Qe4 {[%clk 0:00:29.6]} 55. b5 {[%clk
0:02:00.1]} 55... d3+ {[%clk 0:00:29.7]} 56. Kc3 {[%clk 0:02:00.1]} 56... d2
{[%clk 0:00:28.7]} 57. b6 {[%clk 0:01:59.1]} 57... d1=Q {[%clk 0:00:25.2]} 58.
b7 {[%clk 0:01:59.2]} 58... Qec2+ {[%clk 0:00:25.2]} 59. Kb4 {[%clk 0:01:59.2]}
59... Qdb1+ {[%clk 0:00:25.8]} 60. Ka5 {[%clk 0:01:58.9]} 60... Qca2# {[%clk
0:00:26.7]} 0-1

[Event "Betsys MČR v online bleskovém šachu 2021"]
[Site "Chess.com"]
[Date "2021.04.17"]
[Round "3"]
[White "Vesselovsky52"]
[Black "Tretrik"]
[Result "1-0"]
[WhiteElo "2326"]
[BlackElo "1971"]
[TimeControl "180+1"]
[EndTime "9:26:05 PDT"]
[Termination "Uživatel Vesselovsky52 zvítězil po vzdání soupeře"]

1. e4 {[%clk 0:03:00.9]} 1... c5 {[%clk 0:02:56.7]} 2. Nf3 {[%clk 0:02:59.1]}
2... Nc6 {[%clk 0:02:56.9]} 3. c3 {[%clk 0:02:57.5]} 3... e6 {[%clk 0:02:47.1]}
4. d4 {[%clk 0:02:55.9]} 4... cxd4 {[%clk 0:02:46.8]} 5. cxd4 {[%clk 0:02:54.7]}
5... d5 {[%clk 0:02:47]} 6. e5 {[%clk 0:02:52.2]} 6... Nge7 {[%clk 0:02:45.9]}
7. Nc3 {[%clk 0:02:51.5]} 7... Nf5 {[%clk 0:02:45]} 8. Bd3 {[%clk 0:02:43.5]}
8... Be7 {[%clk 0:02:40.2]} 9. Ne2 {[%clk 0:02:37.1]} 9... g5 {[%clk 0:02:22.8]}
10. h3 {[%clk 0:02:32.5]} 10... h5 {[%clk 0:02:19]} 11. a3 {[%clk 0:01:59.8]}
11... Qb6 {[%clk 0:02:04.4]} 12. b4 {[%clk 0:01:54.5]} 12... Bd7 {[%clk
0:01:35.3]} 13. Bxf5 {[%clk 0:01:52.2]} 13... exf5 {[%clk 0:01:35.6]} 14. Bxg5
{[%clk 0:01:51.7]} 14... a5 {[%clk 0:01:12.4]} 15. Bxe7 {[%clk 0:01:47.5]} 15...
Kxe7 {[%clk 0:01:06.4]} 16. Rb1 {[%clk 0:01:39.3]} 16... axb4 {[%clk 0:01:04.4]}
17. axb4 {[%clk 0:01:38]} 17... Ra3 {[%clk 0:00:32.3]} 18. Nf4 {[%clk 0:01:33]}
18... Be6 {[%clk 0:00:29.3]} 19. O-O {[%clk 0:01:30.1]} 19... h4 {[%clk
0:00:15.9]} 20. b5 {[%clk 0:01:28.2]} 20... Na5 {[%clk 0:00:14.5]} 21. Qd2
{[%clk 0:01:25.6]} 21... Nc4 {[%clk 0:00:12.4]} 22. Qb4+ {[%clk 0:01:24.2]}
22... Ke8 {[%clk 0:00:12]} 23. Ra1 {[%clk 0:01:17.3]} 23... Rxf3 {[%clk
0:00:08]} 24. Nxe6 {[%clk 0:01:09.3]} 24... fxe6 {[%clk 0:00:07]} 25. Ra8+
{[%clk 0:01:06.7]} 25... Kf7 {[%clk 0:00:06.3]} 26. Rxh8 {[%clk 0:01:05.4]}
26... Rd3 {[%clk 0:00:06.2]} 27. Qf8+ {[%clk 0:01:01.1]} 1-0